bitfinex-derivatives/quotes_BTCF0:USTF0_20241223
["timestamp","ask_amount","ask_price","bid_price","bid_amount"]
[1734963234696,0.12429222,95245.0,95244.0,0.052557]
[1734963234904,0.15530799,95251.0,95243.0,0.1094]
[1734963234905,0.15296333,95251.0,95250.0,0.052553]
[1734963235099,0.18594982,95257.0,95256.0,0.05255]
[1734963235902,0.052546,95264.0,95251.0,0.3608]
[1734963236210,0.052546,95264.0,95263.0,0.413346]
[1734963237617,0.052544,95269.0,95268.0,0.052543]
[1734963239505,0.052544,95269.0,95268.0,0.054543]
[1734963240096,0.052544,95269.0,95268.0,0.057543]
[1734963240510,0.052544,95269.0,95264.0,0.100443]
[1734963240809,0.052544,95269.0,95268.0,0.002]
[1734963240997,0.052544,95269.0,95268.0,0.054543]
[1734963241905,0.0541161,95274.0,95273.0,0.052541]
[1734963243009,0.0015751,95274.0,95273.0,0.052541]
[1734963243403,0.0025751,95274.0,95273.0,0.052541]
[1734963243814,0.0015751,95274.0,95273.0,0.052541]
[1734963244009,0.0045751,95274.0,95273.0,0.052541]
[1734963244514,0.0045751,95274.0,95273.0,0.06867662]
[1734963244818,0.0075751,95274.0,95273.0,0.06867662]
[1734963245505,0.0135751,95274.0,95273.0,0.001]
[1734963245905,0.0135751,95274.0,95273.0,0.053541]
[1734963246112,0.0125751,95274.0,95273.0,0.053541]
[1734963246303,0.0095751,95274.0,95273.0,0.053541]
[1734963246613,0.3733751,95274.0,95273.0,0.001]
[1734963246813,0.4259151,95274.0,95273.0,0.001]
[1734963247006,0.052549,95258.0,95257.0,0.31416588]
[1734963248106,0.36140001,95264.0,95253.0,0.01659443]
[1734963248107,0.052551,95254.0,95253.0,0.01659443]
[1734963248307,0.3608,95264.0,95251.0,0.052553]
[1734963248520,0.052552,95252.0,95251.0,0.052553]
[1734963248717,0.052552,95252.0,95241.0,0.2446]
[1734963248913,0.052556,95246.0,95245.0,0.052556]
[1734963249309,0.052551,95254.0,95253.0,0.001]
[1734963249508,0.36140001,95256.0,95255.0,0.052551]
[1734963249722,0.3608,95264.0,95255.0,0.052551]
[1734963249723,0.053186,95264.0,95263.0,0.052546]
[1734963249921,0.052546,95264.0,95263.0,0.052546]
[1734963250835,0.053546,95264.0,95263.0,0.052546]
[1734963252422,0.060546,95264.0,95263.0,0.052546]
[1734963252624,0.063546,95264.0,95263.0,0.052546]
[1734963252923,0.052549,95259.0,95258.0,0.052549]
[1734963253621,0.052549,95259.0,95258.0,0.06918133]
[1734963254615,0.052549,95259.0,95258.0,0.01663233]
[1734963254821,0.052549,95259.0,95254.0,0.3608]
[1734963254822,0.052551,95255.0,95254.0,0.3608]
[1734963255723,0.052556,95246.0,95244.0,0.25146439]
[1734963255908,0.052556,95246.0,95245.0,0.01622269]
[1734963256107,0.052556,95246.0,95244.0,0.25146439]
[1734963256619,0.052558,95242.0,95241.0,0.1218]
[1734963257119,0.052558,95242.0,95241.0,0.01630851]
[1734963257418,0.052559,95239.0,95238.0,0.3608]
[1734963258517,0.052558,95242.0,95241.0,0.002]
[1734963258821,0.052558,95242.0,95241.0,0.004]
[1734963259017,0.08465426,95250.0,95241.0,0.002]
[1734963259217,0.14576215,95247.0,95245.0,0.052556]
[1734963259417,0.09320715,95247.0,95246.0,0.1152]
[1734963259627,0.09320715,95247.0,95246.0,0.476]
[1734963259916,0.09320715,95247.0,95246.0,0.5891]
[1734963260712,0.052551,95254.0,95247.0,0.052555]
[1734963260913,0.052551,95254.0,95252.0,0.052552]
[1734963262315,0.09320715,95261.0,95259.0,0.052548]
[1734963263424,0.09320715,95263.0,95257.0,0.3608]
[1734963263626,0.052548,95260.0,95257.0,0.413349]
[1734963263817,0.052548,95260.0,95258.0,0.052549]
[1734963265323,0.056548,95260.0,95258.0,0.052549]
[1734963265915,0.058548,95260.0,95258.0,0.052549]
[1734963266423,0.058548,95260.0,95257.0,0.3608]
[1734963266424,0.058548,95260.0,95259.0,0.052548]
[1734963266813,0.052549,95258.0,95257.0,0.3608]
[1734963267223,0.052549,95258.0,95257.0,0.41335]
[1734963268016,0.058549,95258.0,95257.0,0.42955881]
[1734963268725,0.060549,95258.0,95257.0,0.42955881]
[1734963270215,0.008,95258.0,95257.0,0.42955881]
[1734963270721,0.060549,95258.0,95257.0,0.42955881]
[1734963272123,0.054549,95258.0,95257.0,0.06875881]
[1734963272324,0.060549,95258.0,95257.0,0.06875881]
[1734963273813,0.061549,95258.0,95257.0,0.06875881]
[1734963274418,0.060549,95258.0,95257.0,0.06875881]
[1734963274619,0.058549,95258.0,95257.0,0.06875881]
[1734963274825,0.060549,95258.0,95257.0,0.06875881]
[1734963275327,0.008,95258.0,95257.0,0.06875881]
[1734963277427,0.002,95258.0,95257.0,0.06975881]
[1734963278127,0.061549,95258.0,95257.0,0.06875881]
[1734963278626,0.009,95258.0,95257.0,0.06875881]
[1734963278827,0.007,95258.0,95257.0,0.06875881]
[1734963279129,0.001,95258.0,95257.0,0.06875881]
[1734963279320,0.004,95258.0,95257.0,0.06875881]
[1734963279722,0.005,95258.0,95257.0,0.06875881]
[1734963280725,0.009,95258.0,95257.0,0.06875881]
[1734963281328,0.005,95258.0,95257.0,0.06875781]
[1734963282030,0.004,95258.0,95257.0,0.06875781]
[1734963282330,0.001,95258.0,95257.0,0.06875781]
[1734963282530,0.005,95258.0,95257.0,0.06875781]
[1734963283932,0.004,95258.0,95257.0,0.06875781]
[1734963284431,0.001,95258.0,95257.0,0.06875781]
[1734963284621,0.056549,95258.0,95257.0,0.06875781]
[1734963285022,0.053549,95258.0,95257.0,0.06875781]
[1734963285220,0.056549,95258.0,95257.0,0.06875781]
[1734963287932,0.058549,95258.0,95257.0,0.06875781]
[1734963289427,0.058549,95258.0,95257.0,0.25750183]
[1734963290633,0.058549,95258.0,95257.0,0.01620881]
[1734963290840,0.052552,95253.0,95252.0,0.30401639]
[1734963292129,0.052552,95253.0,95252.0,0.052552]
[1734963292641,0.052553,95251.0,95250.0,0.25146439]
[1734963293524,0.052553,95251.0,95245.0,0.18906975]
[1734963293842,0.413356,95246.0,95245.0,0.18906975]
[1734963294631,0.413356,95246.0,95245.0,0.19006975]
[1734963295043,0.413356,95246.0,95245.0,0.001]
[1734963295336,0.413356,95246.0,95245.0,0.002]
[1734963296550,0.56870883,95246.0,95245.0,0.002]
[1734963297528,0.59390591,95246.0,95245.0,0.002]
[1734963297740,0.59390591,95246.0,95230.0,0.18906975]
[1734963297741,0.54134991,95246.0,95230.0,0.18906975]
[1734963298041,0.052564,95231.0,95230.0,0.18906975]
[1734963298238,0.3608,95235.0,95227.0,0.18906975]
[1734963298442,0.052565,95228.0,95227.0,0.18906975]
[1734963299344,0.052565,95228.0,95227.0,0.19006975]
[1734963299745,0.052565,95228.0,95227.0,0.001]
[1734963300136,0.09320401,95230.0,95229.0,0.052565]
[1734963300339,0.00064,95246.0,95227.0,0.6618]
[1734963300651,0.00064,95246.0,95245.0,0.413356]
[1734963300652,0.001,95246.0,95245.0,0.413356]
[1734963301237,0.05255,95256.0,95245.0,0.3608]
[1734963301436,0.05255,95256.0,95246.0,0.2506]
[1734963301651,0.052552,95254.0,95252.0,0.052552]
[1734963302148,0.052555,95248.0,95246.0,0.2506]
[1734963302966,0.052555,95248.0,95246.0,0.303155]
[1734963304170,0.001,95254.0,95252.0,0.052552]
[1734963304365,0.052551,95255.0,95246.0,0.2506]
[1734963304550,0.004,95248.0,95247.0,0.052555]
[1734963304756,0.005,95248.0,95247.0,0.052555]
[1734963305560,0.001,95248.0,95247.0,0.052555]
[1734963305872,0.001,95255.0,95246.0,0.4422596]
[1734963306062,0.052555,95247.0,95246.0,0.4411796]
[1734963306262,0.052555,95247.0,95246.0,0.3158796]
[1734963306566,0.052555,95247.0,95246.0,0.1273]
[1734963307169,0.052555,95247.0,95246.0,0.1253]
[1734963307960,0.059555,95247.0,95246.0,0.1253]
[1734963308270,0.062555,95247.0,95246.0,0.1253]
[1734963308670,0.00056001,95259.0,95246.0,0.7861]
[1734963308868,0.03566,95294.0,95267.0,0.052544]
[1734963308869,0.05254,95275.0,95267.0,0.052544]
[1734963309065,0.48294,95292.0,95267.0,0.3608]
[1734963309260,0.08465426,95290.0,95268.0,0.3652]
[1734963309459,0.05254,95275.0,95268.0,0.3652]
[1734963309662,0.08465426,95290.0,95271.0,0.052542]
[1734963309867,0.08465426,95290.0,95268.0,0.3652]
[1734963309868,0.3608,95283.0,95268.0,0.3652]
[1734963310069,0.052536,95282.0,95280.0,0.052537]
[1734963310373,0.4823,95292.0,95268.0,0.3652]
[1734963310670,0.4823,95292.0,95268.0,0.34474]
[1734963311170,0.052539,95276.0,95275.0,0.052539]
[1734963312556,0.4923,95292.0,95278.0,0.052538]
[1734963312764,0.4923,95292.0,95280.0,0.052536]
[1734963313063,0.052531,95291.0,95280.0,0.052536]
[1734963313266,0.42333,95292.0,95280.0,0.12708096]
[1734963313474,0.42333,95292.0,95291.0,0.052531]
[1734963313475,0.3628,95292.0,95291.0,0.052531]
[1734963313768,0.3608,95292.0,95291.0,0.052531]
[1734963314271,0.3608,95315.0,95293.0,0.05253]
[1734963314487,0.1136,95327.0,95299.0,0.3608]
[1734963314662,0.26942434,95317.0,95311.0,0.05252]
[1734963314862,0.052517,95317.0,95311.0,0.05252]
[1734963315173,0.052517,95316.0,95311.0,0.05252]
[1734963315669,0.052517,95316.0,95307.0,0.3608]
[1734963315670,0.052517,95316.0,95307.0,0.34032]
[1734963315971,0.052517,95316.0,95311.0,0.05252]
[1734963316365,0.21690734,95325.0,95311.0,0.05252]
[1734963316563,0.00457484,95312.0,95311.0,0.05252]
[1734963317570,0.00557484,95312.0,95311.0,0.05252]
[1734963318169,0.00157484,95312.0,95311.0,0.05252]
[1734963318474,0.00557484,95312.0,95311.0,0.05252]
[1734963318970,0.3608,95328.0,95311.0,0.05252]
[1734963319166,0.38754328,95337.0,95319.0,0.052515]
[1734963319361,0.052506,95336.0,95320.0,0.1162]
[1734963319565,0.00102412,95328.0,95324.0,0.052512]
[1734963320066,0.052513,95324.0,95320.0,0.1162]
[1734963320370,0.00128015,95326.0,95308.0,0.1185]
[1734963320569,0.052521,95308.0,95307.0,0.34032]
[1734963321075,0.00128015,95308.0,95307.0,0.34032]
[1734963321571,0.00128015,95308.0,95307.0,0.26732]
[1734963321772,0.00128015,95308.0,95307.0,0.29408572]
[1734963322174,0.00128015,95308.0,95307.0,0.41508572]
[1734963323669,0.3608,95321.0,95319.0,0.052515]
[1734963323889,0.001,95326.0,95325.0,0.052512]
[1734963324579,0.3608,95330.0,95325.0,0.052512]
[1734963324777,0.052509,95331.0,95325.0,0.052512]
[1734963324969,0.3608,95341.0,95320.0,0.12708096]
[1734963325167,0.052514,95322.0,95319.0,0.001]
[1734963325367,0.3608,95333.0,95319.0,0.001]
[1734963325567,0.052514,95321.0,95315.0,0.2888]
[1734963325768,0.052514,95321.0,95314.0,0.052518]
[1734963326368,0.052515,95320.0,95314.0,0.052518]
[1734963327777,0.053515,95320.0,95315.0,0.052517]
[1734963327979,0.001,95320.0,95319.0,0.052515]
[1734963328179,0.413308,95333.0,95318.0,0.3608]
[1734963328376,0.3608,95333.0,95320.0,0.12708096]
[1734963328680,0.052503,95341.0,95321.0,0.1189]
[1734963328874,0.052504,95339.0,95333.0,0.052507]
[1734963329382,0.052506,95337.0,95333.0,0.052507]
[1734963329772,0.052507,95335.0,95333.0,0.052507]
[1734963330168,0.052503,95341.0,95339.0,0.052504]
[1734963330372,0.0525,95348.0,95342.0,0.052502]
[1734963330567,0.36136001,95355.0,95343.0,0.0474]
[1734963330568,0.36140001,95355.0,95343.0,0.0474]
[1734963330768,0.3608,95355.0,95353.0,0.052496]
[1734963331182,0.052494,95359.0,95352.0,0.052497]
[1734963331475,0.3608,95367.0,95345.0,0.12708096]
[1734963331672,0.05406794,95357.0,95356.0,0.052495]
[1734963332078,0.00157394,95357.0,95356.0,0.052495]
[1734963333073,0.00257394,95357.0,95356.0,0.052495]
[1734963334382,0.00257394,95357.0,95356.0,0.07841181]
[1734963334875,0.00257394,95357.0,95356.0,0.02591681]
[1734963335075,0.052496,95355.0,95351.0,0.052498]
[1734963335281,0.00102024,95353.0,95351.0,0.052498]
[1734963336180,0.00102024,95352.0,95345.0,0.15303641]
[1734963336378,0.00157394,95357.0,95351.0,0.052498]
[1734963336679,0.052479,95386.0,95374.0,0.052485]
[1734963336979,0.3608,95387.0,95375.0,0.2396]
[1734963337179,0.052481,95381.0,95379.0,0.052482]
[1734963337769,0.052479,95385.0,95383.0,0.05248]
[1734963338178,0.3608,95387.0,95385.0,0.052478]
[1734963339180,0.2323,95399.0,95398.0,0.052472]
[1734963339382,0.1151,95399.0,95398.0,0.052472]
[1734963340571,0.1151,95399.0,95389.0,0.10655296]
[1734963340774,0.1151,95399.0,95396.0,0.052472]
[1734963340980,0.1171,95399.0,95397.0,0.052472]
[1734963341482,1e-08,95405.0,95397.0,0.352472]
[1734963341782,0.3608,95442.0,95404.0,0.3608]
[1734963341990,0.052447,95444.0,95430.0,0.12708096]
[1734963342282,0.052447,95444.0,95439.0,0.052449]
[1734963342481,0.1139,95445.0,95441.0,0.052448]
[1734963342683,0.1139,95445.0,95444.0,0.052447]
[1734963342879,0.1543434,95454.0,95452.0,0.052442]
[1734963343876,0.1543434,95454.0,95446.0,0.052445]
[1734963344078,0.052442,95453.0,95452.0,0.001]
[1734963344884,0.052442,95453.0,95446.0,0.001]
[1734963345076,0.052444,95450.0,95446.0,0.001]
[1734963345272,0.052445,95447.0,95446.0,0.001]
[1734963345477,0.3608,95448.0,95428.0,0.3608]
[1734963345783,0.052446,95446.0,95445.0,0.052446]
[1734963345975,0.3608,95448.0,95430.0,0.12708096]
[1734963346488,0.052448,95441.0,95439.0,0.05142854]
[1734963346789,0.052446,95446.0,95444.0,0.052446]
[1734963346972,0.052446,95446.0,95445.0,0.002]
[1734963347679,0.3608,95459.0,95450.0,0.052443]
[1734963347884,0.052439,95458.0,95455.0,0.05244]
[1734963348191,0.052439,95458.0,95450.0,0.052443]
[1734963348491,0.3608,95459.0,95449.0,0.12708096]
[1734963348782,0.052442,95452.0,95451.0,0.052442]
[1734963348990,0.052445,95446.0,95445.0,0.001]
[1734963349691,0.171445,95446.0,95445.0,0.001]
[1734963350390,0.171445,95446.0,95445.0,0.004]
[1734963350591,0.119,95446.0,95436.0,0.3608]
[1734963350776,0.052448,95441.0,95436.0,0.3608]
[1734963350982,0.119,95446.0,95445.0,0.052446]
[1734963351192,0.05244,95456.0,95454.0,0.052441]
[1734963351399,0.052442,95453.0,95446.0,0.12708096]
[1734963351697,0.052444,95448.0,95446.0,0.12708096]
[1734963351883,0.3608,95458.0,95445.0,0.001]
[1734963352085,0.3608,95458.0,95445.0,0.002]
[1734963352293,0.3608,95449.0,95445.0,0.002]
[1734963352683,0.052445,95447.0,95445.0,0.002]
[1734963353088,0.3608,95449.0,95448.0,0.052444]
[1734963353292,0.052443,95451.0,95445.0,0.002]
[1734963353485,0.052444,95449.0,95445.0,0.002]
[1734963353793,0.052444,95449.0,95446.0,0.003]
[1734963354092,0.052445,95448.0,95446.0,0.003]
[1734963354485,0.052445,95448.0,95445.0,0.052446]
[1734963354486,0.052445,95448.0,95445.0,0.055446]
[1734963354689,0.052445,95448.0,95445.0,0.057446]
[1734963354992,0.052445,95447.0,95445.0,0.057446]
[1734963355193,0.052445,95447.0,95446.0,0.003]
[1734963355982,0.3608,95456.0,95451.0,0.052442]
[1734963356180,0.052443,95452.0,95451.0,0.052442]
[1734963356589,0.3608,95456.0,95453.0,0.052441]
[1734963356798,0.41324,95456.0,95453.0,0.052441]
[1734963356996,0.00118448,95455.0,95453.0,0.052441]
[1734963357384,0.413234,95467.0,95463.0,0.052436]
[1734963357801,0.3608,95467.0,95457.0,0.12708096]
[1734963357989,0.052439,95457.0,95453.0,0.07230538]
[1734963358187,0.3608,95467.0,95453.0,0.01986338]
[1734963358495,0.413234,95467.0,95465.0,0.052435]
[1734963358681,0.052436,95464.0,95463.0,0.003]
[1734963359297,0.052436,95464.0,95463.0,0.055436]
[1734963359997,0.3608,95467.0,95444.0,0.3608]
[1734963360189,0.3608,95459.0,95453.0,0.003]
[1734963360497,0.052441,95454.0,95453.0,0.003]
[1734963361398,0.052442,95452.0,95451.0,0.052443]
[1734963361700,0.052446,95446.0,95444.0,0.01978797]
[1734963361993,0.3608,95451.0,95450.0,0.052443]
[1734963363197,0.002,95454.0,95452.0,0.052442]
[1734963363398,0.002,95454.0,95453.0,0.3608]
[1734963364092,0.052431,95473.0,95470.0,0.052432]
[1734963364401,0.1203,95478.0,95470.0,0.052432]
[1734963364589,0.3608,95480.0,95471.0,0.052432]
[1734963364992,0.413227,95480.0,95471.0,0.052432]
[1734963365193,0.3608,95480.0,95470.0,0.1141]
[1734963365394,0.3608,95488.0,95475.0,0.052429]
[1734963365599,0.052423,95487.0,95470.0,0.095529]
[1734963365801,0.3608,95488.0,95476.0,0.052429]
[1734963366096,0.3608,95488.0,95478.0,0.12708096]
[1734963366302,0.3608,95488.0,95487.0,0.052423]
[1734963366502,0.052419,95495.0,95492.0,0.05242]
[1734963366798,0.052419,95495.0,95493.0,0.413219]
[1734963367304,0.00157139,95499.0,95493.0,0.41322]
[1734963367305,0.00118116,95494.0,95493.0,0.41322]
[1734963368098,0.00118116,95494.0,95489.0,0.052421]
[1734963368300,0.00018116,95492.0,95485.0,0.02027752]
[1734963368508,0.003,95495.0,95481.0,0.3608]
[1734963368696,0.002,95495.0,95481.0,0.3608]
[1734963368892,0.053419,95494.0,95493.0,0.001]
[1734963370205,0.055419,95494.0,95493.0,0.001]
[1734963371099,0.052419,95494.0,95493.0,0.001]
[1734963371696,0.053419,95494.0,95492.0,0.2409996]
[1734963371899,0.00110394,95493.0,95492.0,0.2409996]
[1734963373500,0.00110394,95493.0,95492.0,0.2615362]
[1734963374808,0.00110394,95493.0,95492.0,0.2101162]
[1734963374809,0.05552394,95493.0,95492.0,0.2101162]
[1734963375110,0.00310394,95493.0,95492.0,0.0205366]
[1734963375407,0.00393287,95493.0,95491.0,0.41728439]
[1734963375611,0.00393287,95493.0,95491.0,0.43598513]
[1734963375802,0.05435287,95493.0,95491.0,0.38356513]
[1734963376008,0.052424,95485.0,95484.0,0.31416588]
[1734963376198,0.413224,95485.0,95484.0,0.31416588]
[1734963376598,0.052428,95477.0,95476.0,0.31416588]
[1734963376802,0.3608,95477.0,95476.0,0.31416588]
[1734963377107,0.3608,95485.0,95484.0,0.052425]
[1734963377303,0.052423,95487.0,95484.0,0.001]
[1734963377505,0.002,95493.0,95490.0,0.052421]
[1734963377812,0.002,95493.0,95484.0,0.001]
[1734963377813,0.05242,95492.0,95484.0,0.001]
[1734963378110,0.002,95493.0,95483.0,0.052425]
[1734963378299,0.002,95493.0,95492.0,0.05242]
[1734963378606,0.3608,95497.0,95492.0,0.05242]
[1734963378803,0.052419,95495.0,95492.0,0.05242]
[1734963379202,0.3608,95497.0,95492.0,0.05242]
[1734963379506,0.052419,95494.0,95492.0,0.05242]
[1734963379702,0.3608,95497.0,95487.0,0.052422]
[1734963379911,0.3608,95497.0,95495.0,0.052418]
[1734963381503,0.3648,95497.0,95495.0,0.052418]
[1734963381699,0.004,95497.0,95496.0,0.3608]
[1734963382102,0.00503112,95497.0,95496.0,0.3608]
[1734963382408,0.05844812,95497.0,95496.0,1.5]
[1734963382711,0.05844812,95497.0,95490.0,0.18751418]
[1734963382906,0.00603112,95497.0,95495.0,0.052418]
[1734963383107,0.0012889,95496.0,95495.0,0.052418]
[1734963384198,0.0014357,95496.0,95495.0,0.052418]
[1734963384403,0.0024357,95496.0,95495.0,0.052418]
[1734963384719,0.0024357,95496.0,95491.0,0.18751418]
[1734963385005,0.0024357,95496.0,95495.0,0.052419]
[1734963385312,0.0024357,95496.0,95495.0,0.053419]
[1734963385607,0.0014357,95496.0,95495.0,0.053419]
[1734963385814,0.0024357,95496.0,95495.0,0.053419]
[1734963386912,0.0024357,95496.0,95495.0,0.052419]
[1734963387414,0.0054357,95496.0,95495.0,0.052419]
[1734963388810,0.0014357,95496.0,95495.0,0.052419]
[1734963389015,0.0054357,95496.0,95495.0,0.052419]
[1734963389802,0.00569511,95496.0,95495.0,0.052419]
[1734963391017,0.00195452,95496.0,95495.0,0.052419]
[1734963391207,0.00595452,95496.0,95495.0,0.052419]
[1734963391604,0.00195452,95496.0,95495.0,0.052419]
[1734963391803,0.00595452,95496.0,95495.0,0.052419]
[1734963392008,0.00621393,95496.0,95495.0,0.052419]
[1734963393315,0.00547475,95496.0,95495.0,0.052419]
[1734963394420,0.05319996,95524.0,95522.0,0.052404]
[1734963394610,0.1543434,95526.0,95524.0,0.052403]
[1734963395616,0.1543434,95526.0,95523.0,0.820443]
[1734963395917,0.1543434,95526.0,95523.0,0.819003]
[1734963396615,0.052401,95528.0,95525.0,0.052402]
[1734963396811,0.052401,95528.0,95527.0,0.3608]
[1734963398116,0.052401,95528.0,95527.0,0.3648]
[1734963398514,0.052401,95528.0,95527.0,0.3698]
[1734963399415,0.052396,95537.0,95535.0,0.052396]
[1734963399625,0.052396,95537.0,95536.0,0.3608]
[1734963400622,0.052396,95537.0,95536.0,0.2888]
[1734963401025,0.052396,95537.0,95536.0,0.341196]
[1734963401417,0.052393,95542.0,95540.0,0.052393]
[1734963401923,0.052393,95541.0,95540.0,0.052393]
[1734963402925,0.052394,95539.0,95538.0,0.3608]
[1734963403122,0.05357896,95539.0,95538.0,0.3608]
[1734963403527,0.00118496,95539.0,95538.0,0.3608]
[1734963403822,0.18525817,95566.0,95538.0,0.3608]
[1734963404030,0.1543434,95560.0,95559.0,0.413183]
[1734963404321,0.09419137,95560.0,95559.0,0.413183]
[1734963404526,0.18525817,95562.0,95561.0,0.052382]
[1734963405519,0.18525817,95562.0,95559.0,0.31553298]
[1734963405715,0.18525817,95562.0,95560.0,0.052388]
[1734963406216,0.23764517,95562.0,95560.0,0.052388]
[1734963406525,0.052383,95570.0,95561.0,0.052388]
[1734963406819,0.052383,95569.0,95567.0,0.3608]
[1734963407421,0.052383,95569.0,95567.0,0.413184]
[1734963407719,0.052376,95583.0,95567.0,0.3608]
[1734963407919,0.052372,95590.0,95582.0,0.3608]
[1734963408115,0.3608,95595.0,95582.0,0.3608]
[1734963408322,0.3608,95595.0,95586.0,0.052374]
[1734963408522,0.052372,95589.0,95586.0,0.052374]
[1734963408914,0.052373,95588.0,95586.0,0.052374]
[1734963409220,0.052375,95585.0,95583.0,0.052375]
[1734963409720,0.1158,95598.0,95582.0,0.39167201]
[1734963410025,0.052375,95584.0,95582.0,0.39167201]
[1734963410220,0.052375,95584.0,95582.0,0.38567201]
[1734963410428,0.052375,95584.0,95582.0,0.38667201]
[1734963410727,0.052375,95584.0,95582.0,0.31367201]
[1734963411226,0.3608,95583.0,95582.0,0.03187201]
[1734963411424,0.17867716,95592.0,95566.0,0.3608]
[1734963411617,0.004,95584.0,95573.0,0.052381]
[1734963411818,0.05238,95574.0,95573.0,0.052381]
[1734963412718,0.052383,95569.0,95566.0,0.413184]
[1734963413033,0.05355591,95568.0,95566.0,0.39292951]
[1734963413216,0.05355591,95568.0,95566.0,0.03312951]
[1734963413428,0.05355591,95568.0,95566.0,0.053385]
[1734963413429,0.00143446,95567.0,95566.0,0.053385]
[1734963413818,0.00143446,95567.0,95566.0,0.052385]
[1734963415227,0.00143446,95567.0,95566.0,0.053385]
[1734963415411,0.00169701,95567.0,95566.0,0.001]
[1734963415617,0.00169701,95567.0,95566.0,0.052385]
[1734963416016,0.00195956,95567.0,95563.0,0.2888]
[1734963416218,0.00195956,95567.0,95566.0,0.052385]
[1734963416625,0.00208136,95567.0,95566.0,0.052385]
[1734963417032,0.00208136,95567.0,95566.0,0.054385]
[1734963417326,0.00208136,95567.0,95566.0,0.055385]
[1734963417516,0.00208136,95567.0,95566.0,0.054385]
[1734963418117,0.00208136,95567.0,95566.0,0.055385]
[1734963420627,0.00208136,95567.0,95563.0,0.271185]
[1734963420828,0.052386,95565.0,95564.0,0.052386]
[1734963421629,0.052386,95564.0,95563.0,0.271185]
[1734963422132,0.052389,95559.0,95558.0,0.03182303]
[1734963422325,0.05239,95558.0,95556.0,0.05239]
[1734963422635,0.05447136,95557.0,95556.0,0.05239]
[1734963423128,0.05447136,95557.0,95556.0,0.08414213]
[1734963423534,0.05447136,95557.0,95556.0,0.03175213]
[1734963423732,0.05447136,95557.0,95552.0,0.1187]
[1734963423733,0.05447136,95557.0,95553.0,0.052392]
[1734963423933,0.05239,95556.0,95554.0,0.052391]
[1734963424136,0.05239,95556.0,95547.0,0.1098]
[1734963424326,0.05239,95556.0,95551.0,0.052393]
[1734963424645,0.05468014,95556.0,95555.0,0.03096227]
[1734963424938,0.052399,95540.0,95539.0,0.21584043]
[1734963425137,0.05489792,95540.0,95539.0,0.03227975]
[1734963425337,0.052405,95530.0,95529.0,0.2185]
[1734963425534,0.052405,95530.0,95529.0,0.270905]
[1734963425737,0.0027077,95530.0,95529.0,0.30197153]
[1734963426033,0.3608,95562.0,95529.0,0.66277153]
[1734963426240,0.061391,95556.0,95546.0,0.3608]
[1734963426540,0.009,95556.0,95555.0,0.3608]
[1734963426729,0.009,95556.0,95555.0,0.4695]
[1734963427130,0.006,95556.0,95555.0,0.4695]
[1734963427330,0.003,95556.0,95555.0,0.4695]
[1734963427837,0.003,95556.0,95555.0,0.3608]
[1734963428037,0.005,95556.0,95555.0,0.3608]
[1734963428629,0.006,95556.0,95555.0,0.3618]
[1734963428833,0.09362009,95570.0,95555.0,0.414191]
[1734963429030,0.09362009,95570.0,95569.0,0.052383]
[1734963429431,0.3608,95572.0,95564.0,0.3608]
[1734963429735,0.3608,95572.0,95570.0,0.052382]
[1734963430148,0.052382,95573.0,95570.0,0.052382]
[1734963430338,0.54605817,95583.0,95564.0,0.413186]
[1734963430339,0.052383,95569.0,95564.0,0.413186]
[1734963430522,0.052384,95568.0,95564.0,0.340186]
[1734963430727,0.052384,95567.0,95564.0,0.340186]
[1734963430928,0.003,95572.0,95564.0,0.2878]
[1734963431228,0.052383,95571.0,95570.0,0.052382]
[1734963431431,0.052383,95571.0,95564.0,0.2878]
[1734963431432,0.003,95573.0,95572.0,0.052382]
[1734963431831,0.0937442,95575.0,95564.0,0.2898]
[1734963432036,0.0937442,95575.0,95574.0,0.05238]
[1734963433332,0.1461242,95575.0,95570.0,0.052383]
[1734963433532,0.1461242,95575.0,95572.0,0.058382]
[1734963433934,0.1461242,95575.0,95573.0,0.052381]
[1734963434239,0.1461242,95575.0,95574.0,0.011]
[1734963434627,0.05238,95575.0,95574.0,0.004]
[1734963434832,0.41318,95575.0,95574.0,0.004]
[1734963435037,0.052381,95573.0,95572.0,0.005]
[1734963435238,0.05339777,95573.0,95572.0,0.005]
[1734963435630,0.00101677,95573.0,95561.0,0.1126]
[1734963435836,0.00122518,95567.0,95561.0,0.1126]
[1734963436340,0.052386,95565.0,95564.0,0.052386]
[1734963436540,0.052387,95562.0,95561.0,0.1971086]
[1734963436846,0.05361218,95562.0,95561.0,0.1971086]
[1734963437230,0.05361218,95562.0,95561.0,0.1447216]
[1734963437439,0.05361218,95562.0,95561.0,0.0321216]
[1734963437750,0.05361218,95562.0,95553.0,0.25074429]
[1734963437751,0.052391,95554.0,95553.0,0.25074429]
[1734963437950,0.05382459,95554.0,95553.0,0.28194335]
[1734963438246,0.05382459,95554.0,95553.0,0.25074429]
[1734963438433,0.054033,95554.0,95553.0,0.25074429]
[1734963438838,0.052395,95547.0,95546.0,0.03160978]
[1734963439038,0.413195,95547.0,95536.0,0.25074429]
[1734963439242,0.052401,95537.0,95536.0,0.25074429]
[1734963439641,0.05437232,95537.0,95536.0,0.25074429]
[1734963440640,0.05437232,95537.0,95535.0,0.00122]
[1734963440641,0.052401,95536.0,95535.0,0.00122]
[1734963441747,0.05437232,95536.0,95535.0,0.00122]
[1734963443039,0.05437232,95536.0,95535.0,0.00222]
[1734963443440,0.05437232,95536.0,95535.0,0.00422]
[1734963444338,0.57387232,95536.0,95535.0,0.00422]
[1734963444551,0.27387232,95536.0,95526.0,0.03086977]
[1734963444754,0.052406,95527.0,95514.0,0.1142]
[1734963444953,0.05241,95520.0,95514.0,0.1142]